[Event "Summer Chess Classic-A 2022"]
[Site "Saint Louis"]
[Date "2022.06.04"]
[Round "3.4"]
[White "Sevian, Samuel"]
[Black "Bjerre, Jonas Buhl"]
[Result "1/2-1/2"]
[ECO "A13"]
[WhiteElo "2703"]
[BlackElo "2610"]
[Annotator "TA"]
[PlyCount "80"]
[EventDate "2022.05.31"]
[EventType "tourn"]
[EventCountry "USA"]
[SourceTitle "playchess.com"]
[Source "ChessBase"]
[SourceQuality "1"]
[TimeControl "40/5400+30:1800+30"]

{[%evp 14,80,9,6,7,0,0,0,0,19,23,0,0,0,0,16,17,9,14,17,31,33,17,19,33,3,4,11,6,5,6,8,8,6,10,10,51,45,65,64,57,36,64,34,94,93,85,91,80,77,123,123,133,127,138,31,69,41,60,0,0,0,0,0,0,0,0,0,0]} 1. Nf3 {[%emt 0:01:45]} Nf6 {[%emt 0:01:01]} 2. c4 {[%emt 0:00:43]} e6 {[%emt 0:01:01]} 3. g3 {[%emt 0:01:48]} d5 {[%emt 0:00:12]} 4. Bg2 {[%emt 0:02:32]} d4 {[%emt 0:00:41]} 5. e3 {[%emt 0:00:54]} c5 {[%emt 0:02:02]} 6. exd4 {[%emt 0:00:19]} cxd4 {[%emt 0:00:09]} 7. O-O {[%emt 0:00:36]} Nc6 {[%emt 0:00:58]} 8. d3 {[%emt 0:00:10]} Bd6 {[%emt 0:01:53] A13: English Opening: 1...e6.} 9. Bg5 {[%emt 0:01:33]} h6 {[%emt 0:02:02]} 10. Bxf6 {[%emt 0:00:25]} Qxf6 {[%emt 0:00:07]} 11. Nbd2 {[%emt 0:00:24]} Qe7 {[%emt 0:02:13]} 12. Re1 {[%emt 0:07:57]} O-O {[%emt 0:04:03]} 13. a3 {[%emt 0:02:33]} a5 $1 {[%emt 0:00:48] Against b4} 14. Nb3 {[%emt 0:03:57] 14.Rc1 injects fresh life into this line.} Rd8 {[%emt 0:15:55]} 15. Nbxd4 {[%emt 0:15:30]} (15. Nfxd4 {feels hotter.} Nxd4 16. Nxd4 Bxg3 17. hxg3 Rxd4 18. Qd2) 15... Nxd4 {[%emt 0:00:24]} 16. Nxd4 {[%emt 0:00:08]} Bxg3 $1 {[%emt 0:03:09]} 17. hxg3 {[%emt 0:08:31]} ({Not} 17. Nf5 {[#]} Bxf2+ $1 18. Kxf2 Qf6 $17) 17... Rxd4 {[%emt 0:00:06] [#]} 18. Qc2 $146 {[%emt 0:02:24]} ({Predecessor:} 18. Re4 Rxe4 19. Bxe4 Bd7 20. d4 Bc6 21. Qf3 Bxe4 22. Qxe4 Qc7 23. d5 exd5 24. cxd5 {1-0 (47) Burmakin,V (2523)-Di Benedetto,D (2272) Cutro 2018}) 18... e5 {[%emt 0:11:49]} 19. f4 {[%emt 0:01:22]} Bf5 {[%emt 0:10:27]} 20. Rxe5 {[%emt 0:01:49]} Qf6 {[%emt 0:04:31]} 21. Rd1 {[%emt 0:01:54] [#] Hoping for Qc3.} Rad8 $1 {[%emt 0:04:29]} 22. Bd5 {[%emt 0:12:32] Threatens to win with Qc3.} Be6 {[%emt 0:04:05]} 23. Bxe6 {[%emt 0:11:16]} fxe6 {[%emt 0:00:06]} 24. Re3 {[%emt 0:00:45]} Qg6 {[%emt 0:02:03]} 25. Rf1 $1 {[%emt 0:00:55]} h5 {[%emt 0:05:49]} (25... Rxd3 $2 26. f5 Qxg3+ 27. Rxg3 $18) 26. Rff3 $36 {[%emt 0:02:14][%mdl 2048] White fights for an advantage.} h4 {[%emt 0:03:34]} 27. Qe2 {[%emt 0:02:25]} Qg4 {[%emt 0:03:25]} 28. Qg2 {[%emt 0:05:10]} R8d6 {[%emt 0:03:57]} (28... Qf5 $14) 29. gxh4 $16 {[%emt 0:04:36]} Rxf4 {[%emt 0:01:31]} 30. Rxf4 {[%emt 0:04:16]} Qxf4 {[%emt 0:00:13][%mdl 4096] Endgame KQR-KQR} 31. Qg3 {[%emt 0:00:02]} Qd4 {[%emt 0:01:10]} (31... Qh6 $142) 32. Qe5 {[%emt 0:00:27]} Qxe5 {[%emt 0:05:51]} 33. Rxe5 {[%emt 0:00:03]} Rxd3 {[%emt 0:00:08] KR-KR} 34. Rb5 {[%emt 0:04:06] Prevents Rb3.} ({Don't do} 34. Rxe6 Rg3+ 35. Kf1 Rf3+ 36. Ke1 Rh3 $14) (34. Rxa5 $16 {Black must now prevent b4.} Rd1+ 35. Kf2) 34... Rd2 {[%emt 0:02:32]} 35. Rxb7 {[%emt 0:00:10] aiming for b4.} Rc2 {[%emt 0:00:15]} 36. Rb5 {[%emt 0:01:24]} (36. b3 $14) 36... Rxc4 $11 {[%emt 0:00:22] The position is equal.} 37. b3 {[%emt 0:00:41]} Rc1+ {[%emt 0:02:14]} 38. Kf2 {[%emt 0:00:07]} a4 {[%emt 0:00:08]} 39. bxa4 {[%emt 0:00:46]} Rc3 {[%emt 0:00:16]} 40. a5 {[%emt 0:00:35]} Rxa3 {[%emt 0:00:13] Weighted Error Value: White=0.14 (very precise) /Black=0.09 (flawless)} 1/2-1/2

[Event "Summer Chess Classic-A 2022"]
[Site "Saint Louis"]
[Date "2022.06.04"]
[Round "3.5"]
[White "Mishra, Abhimanyu"]
[Black "Hakobyan, Aram"]
[Result "1-0"]
[ECO "C54"]
[WhiteElo "2535"]
[BlackElo "2615"]
[Annotator "TA"]
[PlyCount "149"]
[EventDate "2022.05.31"]
[EventType "tourn"]
[EventCountry "USA"]
[SourceTitle "playchess.com"]
[Source "ChessBase"]
[SourceQuality "1"]
[TimeControl "40/5400+30:1800+30"]

{[%evp 11,149,12,18,7,22,6,4,9,24,23,16,13,25,12,12,22,33,19,31,25,36,0,0,0,7,0,0,-5,18,0,6,8,17,7,41,41,42,20,63,75,105,109,99,83,105,99,123,117,120,111,127,125,127,90,103,84,140,141,137,97,125,145,161,161,154,155,146,154,152,152,162,158,153,150,138,140,204,174,172,185,247,247,246,246,413,413,413,364,29951,29952,29956,29957,29954,29955,29968,29956,29955,29957,29955,29957,29953,29953,29956,12836,12841,12795,1810,1811,29955,10935,29976,29968,29968,29969,29975,29976,29977,29976,29978,29979,29979,29978,29973,29970,29969,29969,29968,29970,29968,29968,29974,29975,29979,29976,29974,29976,29996,29995,29997,29990]} 1. e4 {[%emt 0:00:02]} e5 {[%emt 0:00:28]} 2. Nf3 {[%emt 0:00:07]} Nc6 {[%emt 0:00:03]} 3. Bc4 {[%emt 0:00:16]} Bc5 {[%emt 0:00:05]} 4. c3 {[%emt 0:00:23]} Nf6 {[%emt 0:00:06]} 5. d3 {[%emt 0:00:11]} d6 {[%emt 0:00:47]} 6. O-O {[%emt 0:00:58]} a6 {[%emt 0:00:06]} 7. a4 {[%emt 0:01:33] C54: Giuoco Piano: 4 c3 Nf6, main lines with 5 d4 and 5 d3.} Ba7 {[%emt 0:00:07]} 8. Re1 {[%emt 0:00:47]} Ng4 {[%emt 0:01:50]} 9. Re2 {[%emt 0:01:50] The position is equal.} O-O {[%emt 0:00:04]} 10. h3 {[%emt 0:03:26]} Nf6 {[%emt 0:00:02]} 11. Re1 {[%emt 0:01:17]} b5 {[%emt 0:01:20][%cal Bb7b5,Bb5b4][%mdl 32] 11...Be6 gains popularity.} 12. Ba2 {[%emt 0:01:06]} b4 {[%emt 0:00:20]} 13. d4 {[%emt 0:02:01]} a5 {[%emt 0:35:55]} 14. Be3 {[%emt 0:07:00]} h6 {[%emt 0:05:34]} (14... Nxe4 $2 15. Bd5 Bb7 16. Bxe4 $18) 15. Nbd2 {[%emt 0:04:18]} Re8 {[%emt 0:10:05]} 16. Bc4 {[%emt 0:13:36]} bxc3 {[%emt 0:06:47]} 17. bxc3 {[%emt 0:00:20]} exd4 {[%emt 0:04:42] [#]} 18. Nxd4 $146 {[%emt 0:10:34]} ({Predecessor:} 18. Bxd4 Ne5 19. Nxe5 dxe5 20. Bxa7 Rxa7 21. Qe2 Ra8 22. Red1 Qe7 23. Bb5 Bd7 24. Bxd7 {½-½ (22) Martucci,M (2177)-Popov,V (2248) LSS email 2018}) 18... Bd7 {[%emt 0:02:28]} 19. Rb1 {[%emt 0:07:05]} Re7 {[%emt 0:13:53]} 20. Bb5 {[%emt 0:07:33]} Nxd4 {[%emt 0:06:47]} 21. Bxd4 {[%emt 0:01:39]} Re6 {[%emt 0:02:13]} 22. Qf3 {[%emt 0:09:13]} c6 {[%emt 0:01:31]} 23. Bd3 {[%emt 0:03:11]} Qc7 {[%emt 0:04:14]} 24. Qg3 {[%emt 0:02:54]} Bxd4 {[%emt 0:01:08]} 25. cxd4 {[%emt 0:00:07]} Rae8 {[%emt 0:00:04]} 26. f4 {[%emt 0:01:56]} Qa7 {[%emt 0:00:09]} 27. Qf2 {[%emt 0:01:00]} R6e7 {[%emt 0:00:05][%cal Od7f5]} 28. e5 {[%emt 0:09:17]} Nd5 {[%emt 0:00:01]} 29. Nc4 {[%emt 0:00:16]} dxe5 {[%emt 0:00:56]} 30. fxe5 {[%emt 0:00:28]} ({But not} 30. Rxe5 $6 f6 31. Rxe7 Rxe7 $11) 30... Be6 {[%emt 0:00:32]} 31. Nd6 {[%emt 0:01:02]} Rb8 {[%emt 0:00:02]} 32. Kh2 {[%emt 0:02:06] 0x0.00207aaea47edp-1022s more active pieces.} Rb4 {[%emt 0:01:28]} 33. Rec1 {[%emt 0:02:41]} Qb6 {[%emt 0:01:55]} (33... Rc7 $142) 34. Qh4 $16 {[%emt 0:01:23]} Rd7 {[%emt 0:01:01]} 35. Rf1 {[%emt 0:03:53]} Qd8 {[%emt 0:00:41]} 36. Qe4 {[%emt 0:00:43]} Rxd6 {[%emt 0:00:13]} 37. exd6 {[%emt 0:01:00]} Qxd6+ {[%emt 0:00:02]} 38. Qe5 {[%emt 0:00:54] Really sharp!} Qxe5+ 39. dxe5 {[%emt 0:00:01]} g6 {[%emt 0:01:42]} 40. Rxb4 {[%emt 0:01:44]} Nxb4 {[%emt 0:00:05][%mdl 4096] Endgame KRB-KBN} 41. Be4 {[%emt 0:03:58]} Bb3 {[%emt 0:08:18]} 42. Rf3 {[%emt 0:07:59]} Bxa4 {[%emt 0:01:25]} 43. Ra3 {[%emt 0:03:26]} Bc2 {[%emt 0:01:14]} (43... Bb5 $16 {keeps fighting.}) 44. Bxc2 $18 {[%emt 0:00:27]} Nxc2 {[%emt 0:00:01]} 45. Rxa5 {[%emt 0:00:14] [#] Hoping for Ra4. KR-KN} Nd4 {[%emt 0:01:11]} (45... Kf8 $142 46. Kg3 Ke7) 46. Rc5 {[%emt 0:04:09] And now Rc4 would win.} Kf8 {[%emt 0:03:27]} 47. Rc4 {[%emt 0:01:04]} c5 {[%emt 0:00:22]} (47... Ne2 {is a better defense.} 48. Rxc6 h5) 48. Rxc5 {[%emt 0:00:31]} Ke7 {[%emt 0:00:05]} 49. Kg3 {[%emt 0:02:53]} f6 $2 {[%emt 0:00:24]} (49... Nf5+ $18 50. Kf4 Nd4 51. Rc7+ Ke8) 50. exf6+ {[%emt 0:03:36]} Kxf6 {[%emt 0:00:03]} 51. Rd5 {[%emt 0:00:48]} Ne6 {[%emt 0:02:16]} 52. Kf3 {[%emt 0:00:53]} h5 {[%emt 0:00:35]} 53. Ra5 {[%emt 0:00:44]} Ng5+ {[%emt 0:03:39]} 54. Kf4 {[%emt 0:00:31]} Ne6+ {[%emt 0:00:07]} 55. Ke4 {[%emt 0:00:34]} Ng5+ {[%emt 0:00:22]} 56. Kd5 {[%emt 0:01:20]} Kf5 {[%emt 0:00:01]} 57. Kd6+ {[%emt 0:00:47]} Kf6 {[%emt 0:00:06]} 58. Ra4 {[%emt 0:01:54] [#] Threatening mate with Rf4+.} Nf7+ {[%emt 0:04:32]} 59. Kd5 {[%emt 0:01:06]} Nh6 {[%emt 0:00:14]} 60. Rf4+ {[%emt 0:00:41]} (60. Ke4 $142 Kg5 61. Ra5+ Kf6 62. Ra6+ Kg5 63. Ke5 Nf5 64. Ke6 Ne3 65. Kf7) 60... Kg5 {[%emt 0:01:13]} 61. Ke5 {[%emt 0:01:42][%csl Gf4][%cal Rh3h4] White mates.} Nf5 {[%emt 0:00:22]} 62. Rf3 {[%emt 0:00:41]} h4 {[%emt 0:02:20]} 63. Rf4 {[%emt 0:00:39]} Nh6 {[%emt 0:00:02]} 64. Rd4 {[%emt 0:00:35]} Nf7+ {[%emt 0:00:31]} 65. Ke6 {[%emt 0:00:07]} Nh6 {[%emt 0:00:04]} 66. Re4 {[%emt 0:00:44]} Ng8 {[%emt 0:00:52]} 67. Kf7 {[%emt 0:00:52]} Nh6+ {[%emt 0:00:13]} 68. Kf8 {[%emt 0:00:41]} Nf5 {[%emt 0:00:19]} 69. Re6 {[%emt 0:00:41]} Nd4 {[%emt 0:00:55]} 70. Ra6 {[%emt 0:00:47]} Kh5 {[%emt 0:07:23]} 71. Kg7 {[%emt 0:00:23]} Nf5+ {[%emt 0:00:01]} 72. Kh7 {[%emt 0:00:11]} Ne3 {[%emt 0:00:05]} 73. Re6 {[%emt 0:00:53]} Nd5 {[%emt 0:00:38]} 74. Re5+ {[%emt 0:00:26]} g5 {[%emt 0:00:01]} 75. Rf5 {[%emt 0:00:27] Weighted Error Value: White=0.05 (flawless) /Black=0.53} 1-0

[Event "Summer Chess Classic-A 2022"]
[Site "Saint Louis"]
[Date "2022.06.05"]
[Round "4.2"]
[White "Bjerre, Jonas Buhl"]
[Black "Mishra, Abhimanyu"]
[Result "1/2-1/2"]
[ECO "D46"]
[WhiteElo "2610"]
[BlackElo "2535"]
[Annotator "TA"]
[PlyCount "116"]
[EventDate "2022.05.31"]
[EventType "tourn"]
[EventCountry "USA"]
[SourceTitle "playchess.com"]
[Source "ChessBase"]
[SourceQuality "1"]
[TimeControl "40/5400+30:1800+30"]

{[%evp 14,116,37,18,43,31,23,23,31,25,37,0,6,0,0,0,0,0,66,51,98,95,110,50,75,67,108,114,119,105,125,122,192,185,328,300,289,283,516,527,598,0,0,10,7,0,0,0,0,0,0,42,8,16,8,0,0,0,0,0,0,0,189,189,189,186,191,92,93,50,50,50,50,50,50,50,138,131,138,50,98,98,103,90,109,83,131,116,131,109,178,109,109,60,131,109,104,70,101,0,0,0,0,0,0]} 1. d4 {[%emt 0:00:09]} d5 {[%emt 0:00:09]} 2. c4 {[%emt 0:00:10]} c6 {[%emt 0:00:05]} 3. Nf3 {[%emt 0:00:09]} Nf6 {[%emt 0:00:09]} 4. e3 {[%emt 0:00:08]} e6 {[%emt 0:00:10]} 5. Bd3 {[%emt 0:00:52]} dxc4 {[%emt 0:02:18]} 6. Bxc4 {[%emt 0:00:29]} Nbd7 {[%emt 0:00:32]} 7. O-O {[%emt 0:00:30]} Bd6 {[%emt 0:00:24]} 8. Nc3 {[%emt 0:01:39]} b5 {[%emt 0:01:10] Nowadays more popular than 8...0-0. D46: Semi-Slav: 5 e3 Nbd7 6 Bd3, Black avoids the Meran.} 9. Bb3 {[%emt 0:00:43]} b4 {[%emt 0:02:10]} 10. Na4 {[%emt 0:00:50][%cal Oe3e4]} Bb7 {[%emt 0:00:28] White has an edge.} 11. Qe2 {[%emt 0:00:33]} Qa5 {[%emt 0:01:55] [#]} 12. Nd2 $146 {[%emt 0:01:10][%cal Bf3d2,Bd2c4,Bc4d6][%mdl 32] With the idea Nc4.} (12. Rd1 $5 {[%cal Re3e4]}) ({Predecessor:} 12. Rd1 Qh5 13. h3 g5 14. e4 g4 15. Ne5 Rg8 16. Nxd7 Nxd7 17. Nc5 Bxc5 18. dxc5 Ba6 19. Qxa6 {½-½ (19) Freeman,M (2530)-Krzyzanowski,W (2484) ICCF email 2018}) 12... O-O {[%emt 0:19:31]} 13. e4 {[%emt 0:00:33]} Ba6 {[%emt 0:03:08]} 14. Bc4 {[%emt 0:00:47]} Bxc4 {[%emt 0:06:44]} (14... Qxa4 15. Bxa6 e5 16. dxe5 Bxe5 17. f4 $14) 15. Nxc4 {[%emt 0:00:15]} Qxa4 {[%emt 0:01:58]} (15... Bxh2+ $11 16. Kxh2 Qxa4) 16. Nxd6 $14 {[%emt 0:02:43]} c5 {[%emt 0:05:22]} (16... b3 $14) 17. dxc5 {[%emt 0:17:17]} Nxc5 {[%emt 0:02:02]} 18. Qc4 {[%emt 0:01:28]} (18. Bf4 $16) 18... Qc6 {[%emt 0:07:11][%csl LRd6,LRe4]} 19. Rd1 {[%emt 0:17:41] Black must now prevent Be3.} Rad8 {[%emt 0:06:26]} 20. e5 $36 {[%emt 0:02:25][%mdl 2048] Black is under strong pressure.} ({Much weaker is} 20. Be3 $6 Rxd6 21. Rxd6 (21. Bxc5 $2 Rxd1+ 22. Rxd1 Nxe4 $19) 21... Qxd6 $11) 20... Nd5 {[%emt 0:01:20]} 21. Bg5 $1 {[%emt 0:04:06]} f6 {[%emt 0:06:36]} 22. Bh4 {[%emt 0:03:01] Threatens to win with Rac1. White is more active.} Rd7 {[%emt 0:06:19]} (22... g5 $16 {might work better.}) 23. Rac1 $1 $18 {[%emt 0:04:27]} Rc7 {[%emt 0:08:28]} (23... fxe5 {is a better defense.} 24. Qxc5 (24. Ne4 Nb6 $11) 24... Qxd6) 24. Nb5 {[%emt 0:06:05]} Nb6 {[%emt 0:02:51]} 25. Qxb4 {[%emt 0:06:46]} a5 $2 {[%emt 0:01:15]} (25... Rd7 26. exf6 Rxd1+ 27. Rxd1 Nd5) 26. Qxa5 {[%emt 0:02:43]} Ra8 {[%emt 0:00:44]} 27. Qxa8+ {[%emt 0:10:18]} Nxa8 $11 {[%emt 0:00:59][%cal Bb6a8,Ba8c7,Bc7d5][%mdl 32]} 28. Nxc7 {[%emt 0:00:06]} Nxc7 {[%emt 0:01:06]} 29. b4 {[%emt 0:00:05]} Nd5 $1 {[%emt 0:03:57][%cal Od5f4]} 30. Rxc5 {[%emt 0:03:32]} Qa4 {[%emt 0:00:02][%cal Ra4d1]} 31. Rdc1 {[%emt 0:01:01]} g5 {[%emt 0:06:12]} 32. Bg3 {[%emt 0:00:56]} f5 {[%emt 0:00:01] aiming for ...f4.} 33. f3 {[%emt 0:04:37] And now b5 would win.} Qxb4 {[%emt 0:00:27]} 34. Bf2 {[%emt 0:00:43]} Kf7 {[%emt 0:02:00]} 35. h3 {[%emt 0:01:39]} h5 {[%emt 0:01:29]} 36. Rc8 {[%emt 0:00:55]} Qa4 {[%emt 0:01:25]} 37. R1c2 {[%emt 0:01:32]} f4 $2 {[%emt 0:00:49]} (37... Qf4 $11 {and Black is okay.}) 38. Rb2 $1 $18 {[%emt 0:01:18]} Kg6 {[%emt 0:01:00]} 39. Rg8+ {[%emt 0:01:57]} Kf5 {[%emt 0:00:24]} 40. Re2 {[%emt 0:00:37] Prevents Ne3.} (40. Rf8+ $18 Kg6 41. Rbb8) 40... h4 $16 {[%emt 0:00:39]} 41. Rc8 {[%emt 0:04:51] Prevents Qc4.} Qd1+ {[%emt 0:05:09]} 42. Re1 {[%emt 0:00:11]} Qa4 {[%emt 0:00:18]} 43. Ra1 {[%emt 0:01:56]} Qa3 {[%emt 0:08:29] Inhibits Rf8+.} 44. Rc2 {[%emt 0:02:03]} Qd3 {[%emt 0:04:09]} (44... Ne3 $14 45. Bxe3 fxe3) 45. Rcc1 $1 {[%emt 0:03:51]} Qa3 {[%emt 0:03:50]} 46. Re1 {[%emt 0:02:25]} ({White should play} 46. Bc5 $16 Qa5 47. Bd6) 46... Kg6 {[%emt 0:00:51]} (46... Ne3 $14) 47. Re2 {[%emt 0:01:02]} Kf5 {[%emt 0:01:02]} 48. Rae1 {[%emt 0:01:03]} Qa4 {[%emt 0:02:11]} 49. Rd2 {[%emt 0:00:40][%cal Od2d5] Rxd5! is the strong threat.} Nc3 {[%emt 0:02:01]} (49... Qa5 $142 50. Rb2 Qc3) 50. Kh2 {[%emt 0:04:31]} Qa5 {[%emt 0:00:53]} 51. Rc2 {[%emt 0:00:54][%cal Of2b6]} Qa3 {[%emt 0:01:10] [#]} (51... Nd5 $16 {was called for.}) 52. Kg1 {[%emt 0:02:38]} ({White should try} 52. Bc5 $1 $18 {[%mdl 512]} Qa5 53. Ra1 $1) 52... Nd5 {[%emt 0:00:56] [#]} 53. Bc5 {[%emt 0:01:26]} (53. Rec1 $1 $16) 53... Qa4 {[%emt 0:00:54]} (53... Qd3 $1 $14 54. Ree2 Kg6) 54. Ree2 {[%emt 0:00:42]} Qb5 {[%emt 0:00:21][%cal Od5c3]} 55. Bf2 {[%emt 0:01:22]} Nc3 {[%emt 0:01:27] [#]} 56. Re1 {[%emt 0:00:51]} (56. Red2 $1 $16 Nd5 57. Rd1) 56... Qd3 $11 {[%emt 0:01:50] The position is equal.} 57. Rb2 {[%emt 0:00:39][%cal Oa2a4]} Nd1 $1 {[%emt 0:00:48]} 58. Rbe2 {[%emt 0:03:35]} Nc3 $1 {[%emt 0:00:25] Weighted Error Value: White=0.30/Black=0.27 (precise)} 1/2-1/2

[Event "Summer Chess Classic-A 2022"]
[Site "Saint Louis"]
[Date "2022.06.05"]
[Round "4.3"]
[White "Gledura, Benjamin"]
[Black "Sevian, Samuel"]
[Result "1/2-1/2"]
[ECO "E36"]
[WhiteElo "2644"]
[BlackElo "2703"]
[Annotator "TA"]
[PlyCount "81"]
[EventDate "2022.05.31"]
[EventType "tourn"]
[EventCountry "USA"]
[SourceTitle "playchess.com"]
[Source "ChessBase"]
[SourceQuality "1"]
[TimeControl "40/5400+30:1800+30"]

{[%evp 12,81,18,7,20,23,12,7,16,29,18,18,18,18,11,10,9,0,29,17,22,10,20,0,0,0,0,0,4,12,3,0,0,0,0,0,0,0,0,0,0,0,0,0,0,0,0,0,0,0,0,0,0,0,0,0,0,0,0,0,0,0,0,0,0,0,0,0,0,0,0,0]} 1. d4 {[%emt 0:00:04]} Nf6 {[%emt 0:01:50]} 2. c4 {[%emt 0:00:17]} e6 {[%emt 0:00:05]} 3. Nc3 {[%emt 0:00:37]} Bb4 {[%emt 0:00:05]} 4. Qc2 {[%emt 0:00:24]} d5 {[%emt 0:00:14]} 5. a3 {[%emt 0:00:23]} Bxc3+ {[%emt 0:00:08]} 6. Qxc3 {[%emt 0:00:06]} O-O {[%emt 0:00:07]} 7. Bg5 {[%emt 0:00:54]} h6 {[%emt 0:03:18] E36: Nimzo-Indian: Classical: 4...d5 5 a3.} 8. Bxf6 {[%emt 0:01:20]} Qxf6 {[%emt 0:00:09]} 9. Nf3 {[%emt 0:00:22]} dxc4 $1 {[%emt 0:01:33] The main line 9...dxc4 scores better than 9...c6.} 10. Qxc4 {[%emt 0:00:09]} Nc6 {[%emt 0:00:09]} 11. Qc3 {[%emt 0:00:55] 11.e3 is vanishing.} Re8 {[%emt 0:00:33]} 12. Rd1 {[%emt 0:02:42]} e5 {[%emt 0:01:22]} 13. d5 {[%emt 0:00:27]} Nb8 {[%emt 0:00:16]} 14. e3 {[%emt 0:00:22]} Bf5 {[%emt 0:01:16]} 15. Be2 {[%emt 0:01:15]} Nd7 {[%emt 0:02:57] The position is equal.} 16. O-O {[%emt 0:01:56]} Rac8 {[%emt 0:07:40]} 17. Bb5 {[%emt 0:14:12]} a6 {[%emt 0:23:45]} 18. Bxd7 {[%emt 0:01:46]} Bxd7 {[%emt 0:00:03]} 19. Nd2 {[%emt 0:00:09] [#]} Qg6 $146 {[%emt 0:04:06] [#] White must now prevent ...Bh3.} ({Predecessor:} 19... Bb5 20. Rfe1 e4 21. Rc1 Qf5 22. Qd4 Rcd8 23. Nb3 Rxd5 24. Qa7 Qh5 25. Nd4 Rg5 {0-1 (38) Braun,A (2609)-Svane,R (2615) Magdeburg 2021}) 20. f3 {[%emt 0:09:31]} Rcd8 {[%emt 0:00:58]} 21. Nc4 {[%emt 0:10:21]} Bb5 {[%emt 0:02:31]} 22. b3 {[%emt 0:08:23]} c6 {[%emt 0:04:11]} 23. a4 {[%emt 0:01:44]} ({Much worse is} 23. Nxe5 Qf6 24. Rfe1 Qxe5 $17) 23... cxd5 {[%emt 0:12:00] Hoping for ...Bxc4.} 24. Nxe5 {[%emt 0:01:07]} Rxe5 {[%emt 0:09:09]} 25. Qxe5 {[%emt 0:03:08]} Bxf1 {[%emt 0:00:17]} 26. Kxf1 $11 {[%emt 0:03:56][%mdl 4096] Endgame KQR-KQR} Qc2 {[%emt 0:00:36][%csl LRb3,LRd1]} 27. Rxd5 {[%emt 0:00:21]} Rc8 {[%emt 0:00:31]} 28. Qf5 {[%emt 0:01:13]} Qxf5 {[%emt 0:00:40]} ({Much less strong is} 28... Qc1+ 29. Kf2 $16) 29. Rxf5 {[%emt 0:00:09] KR-KR} Rc3 {[%emt 0:00:04][%csl LRb3,LRe3]} 30. b4 {[%emt 0:02:36][%cal Bb3b4,Bb4b5][%mdl 32]} Rxe3 {[%emt 0:00:37]} 31. Kf2 {[%emt 0:08:38]} Rb3 {[%emt 0:01:17]} 32. b5 {[%emt 0:01:01]} Ra3 {[%emt 0:08:42]} 33. bxa6 {[%emt 0:00:36]} Rxa4 {[%emt 0:00:05]} 34. axb7 {[%emt 0:00:08]} Rb4 {[%emt 0:00:03]} 35. Re5 {[%emt 0:00:22] [#] Re8+ is the strong threat.} Rxb7 {[%emt 0:00:06]} 36. h4 {[%emt 0:00:06]} g6 {[%emt 0:00:11]} 37. g4 {[%emt 0:00:11]} Kg7 {[%emt 0:00:06]} 38. g5 {[%emt 0:00:12]} Rb4 {[%emt 0:00:11]} 39. Kg3 {[%emt 0:00:08]} Rb1 {[%emt 0:00:07]} 40. Ra5 {[%emt 0:00:26]} Rh1 {[%emt 0:01:01]} 41. Rb5 {[%emt 0:30:35] A balanced but interesting game.  Weighted Error Value: White=0.02 (flawless) /Black=0.01 (flawless)} 1/2-1/2